{"text_format":"3","workbook":"xlsx","n_sheets":2,"sheets":["Biota","Mamifero Marinho"],"not_rendered":{"images":4,"defined_names":5},"read":"whole","date_system":"1900"}

{"sheet":"Biota","index":0,"n_rows":35,"n_cols":47,"rows_kept":35,"merged":[[0,0,2,1],[0,2,2,10],[0,11,0,12],[1,11,1,12],[2,11,2,12],[3,0,3,1],[3,2,3,10],[3,11,3,13],[4,0,5,0],[4,2,4,4],[4,5,4,7],[4,8,4,10],[5,2,6,4],[5,5,6,7],[5,8,6,10],[6,0,6,1],[7,2,8,4],[7,5,8,7],[7,8,8,10],[8,0,8,1],[9,0,10,0],[9,2,10,4],[9,5,10,7],[9,8,10,10],[11,0,11,1],[11,2,12,4],[11,5,12,7],[11,8,12,10],[13,0,13,1],[13,2,14,4],[13,5,14,7],[13,8,14,10],[15,0,15,1],[15,2,16,4],[15,5,16,7],[15,8,16,10],[16,11,17,13],[17,0,17,1],[17,2,17,4],[17,5,18,7],[17,8,18,10],[18,2,18,4],[18,11,18,13],[19,0,19,1],[19,2,19,4],[19,5,20,7],[19,8,20,10],[19,11,19,12],[20,2,20,4],[20,11,20,13],[21,2,23,4],[21,5,22,7],[21,8,22,10],[21,11,28,13],[23,5,24,7],[23,8,24,10],[24,0,24,1],[24,2,24,4],[25,2,26,4],[25,5,26,7],[25,8,26,10],[27,2,27,4],[27,5,27,7],[27,8,27,10],[28,0,28,1],[28,2,28,4],[28,5,30,7],[28,8,30,10],[29,2,29,4],[29,11,29,13],[30,2,30,4],[30,11,32,13],[31,0,31,10],[32,0,32,10],[33,0,34,1],[33,2,33,10],[33,11,33,12],[34,2,34,10],[34,11,34,12],[35,0,35,13]]}
["                        ",null," Projeto de Monitoramento Ambiental\nRegistro de Avistagem de Fauna Marinha    ",{"$nulls":8},"N° do Registro",{"$nulls":3},{"$f":"#REF!","v":{"$error":"#REF!"}},{"$nulls":29},{"$f":"AQ5","v":0},{"$f":"AP5","v":0}]
[{"$nulls":11},"Data"]
[{"$nulls":11},"Hora"]
["Observador",null,"Animal Avistado",{"$nulls":8},"Comportamento"]
[null,null,"Quelônio",null,null,"Ictiofauna ",null,null,"Avifauna",null,null,{"$f":"P5","v":"(     ) Deslocamento Lento"},{"$nulls":3},{"$f":"IFERROR(IF(FIND(R5,$P$1,1),\"(  x  ) Deslocamento Lento\"),\"(     ) Deslocamento Lento\")","v":"(     ) Deslocamento Lento"},null,"01","lento",null,null,{"$f":"A5","v":0},null,"Claudia Petta",1,null,{"$f":"\"plan2!$A$\"&VLOOKUP($V$5,$X$5:$Y$9,2,FALSE)","v":{"$error":"#N/A"}}]
[null,null,"(    ) Caretta caretta       Tartaruga-cabeçuda",null,null,"(     ) Coryphaena hippurus            Dourado",null,null,"(     ) Thalassarche melanophris Albatroz-de-sobrancelha",null,null,"(     ) Deslocamento Médio",{"$nulls":3},{"$f":"IFERROR(IF(FIND(R6,$P$1,1),\"(  x  ) Deslocamento Médio\"),\"(     ) Deslocamento Médio\")","v":"(     ) Deslocamento Médio"},null,"02","médio",{"$nulls":4},"Leonardo Vidal",2]
["Unidade / Embarcação",{"$nulls":10},"(     ) Deslocamento Rápido",{"$nulls":3},{"$f":"IFERROR(IF(FIND(R7,$P$1,1),\"(  x  ) Deslocamento Rápido\"),\"(     ) Deslocamento Rápido\")","v":"(     ) Deslocamento Rápido"},null,"03","rápido",{"$nulls":4},"Zeldon Ribeiro",3]
[null,null,"(    ) Eretmochelys imbricata     Tartaruga-de-pente",null,null,"(     ) Thunnus albacares            Albacora",null,null,"(     ) Thalassarche chlororhynchos Albatroz-de-nariz-amarelo",null,null,"(     ) Repouso",{"$nulls":3},{"$f":"IFERROR(IF(FIND(R8,$P$1,1),\"(  x  ) Repouso\"),\"(     ) Repouso\")","v":"(     ) Repouso"},null,"04","Repouso",{"$nulls":4},"Luciano Cruz",4]
["Poço / Bloco",{"$nulls":10},"(     ) Alimentação",{"$nulls":3},{"$f":"IFERROR(IF(FIND(R9,$P$1,1),\"(  x  ) Alimentação\"),\"(     ) Alimentação\")","v":"(     ) Alimentação"},null,"05","Alimentação",{"$nulls":4},"Bruno Ança",5]
[null,null,"(    ) Chelonia mydas   Tartaruga-verde",null,null,"(     ) Thunnus sp.                             Atum",null,null,"(     ) Sula dactylatra             Atobá-mascarado",null,null,"(     ) Acasalamento",{"$nulls":3},{"$f":"IFERROR(IF(FIND(R10,$P$1,1),\"(  x  ) Acasalamento\"),\"(     ) Acasalamento\")","v":"(     ) Acasalamento"},null,"06","Acasalamento"]
[{"$nulls":11},"(     ) Fuga/evitação",{"$nulls":3},{"$f":"IFERROR(IF(FIND(R11,$P$1,1),\"(  x  ) Fuga/evitação\"),\"(     ) Fuga/evitação\")","v":"(     ) Fuga/evitação"},null,"07","Fuga"]
["Latitude ",null,"(    ) Lepidochelys olivacea Tartaruga-oliva",null,null,"(     ) Scomber colias                     Cavala",null,null,"(     ) Sula leucogaster              Atobá-marrom",null,null,"(     ) Forrageio",{"$nulls":3},{"$f":"IFERROR(IF(FIND(R12,$P$1,1),\"(  x  ) Forrageio\"),\"(     ) Forrageio\")","v":"(     ) Forrageio"},null,"08","Forrageio"]
[{"$nulls":11},"(     ) Mergulho",{"$nulls":3},{"$f":"IFERROR(IF(FIND(R13,$P$1,1),\"(  x  ) Mergulho\"),\"(     ) Mergulho\")","v":"(     ) Mergulho"},null,"09","Mergulho"]
["Longitude",null,"(    ) Dermochelys coriacea Tartaruga-de-couro",null,null,"(     ) Caranx crysos                     Xerelete",null,null,"(     ) Fregata magnificens Tesourão/Fragata",null,null,"(     ) Interação com outros indivíduos",{"$nulls":3},{"$f":"IFERROR(IF(FIND(R14,$P$1,1),\"(  x  ) Interação com outros indivíduos\"),\"(     ) Interação com outros indivíduos\")","v":"(     ) Interação com outros indivíduos"},null,"10","Interação"]
[{"$nulls":11},"(     ) Vocalização",{"$nulls":3},{"$f":"IFERROR(IF(FIND(R15,$P$1,1),\"(  x  ) Vocalização\"),\"(     ) Vocalização\")","v":"(     ) Vocalização"},null,"11","Vocalização"]
["Datum",null,"(    ) Outros²: ",null,null,"(     ) Istiophorus platypterus        Agulhão-vela",null,null,"(     ) Stercorarius parasiticus Gaivota-rapineira",null,null,"(     ) Defesa",{"$nulls":3},{"$f":"IFERROR(IF(FIND(R16,$P$1,1),\"(  x  ) Defesa\"),\"(     ) Defesa\")","v":"(     ) Defesa"},null,"12","Defesa"]
[{"$nulls":11},"(     ) Outros:",{"$nulls":3},{"$f":"IFERROR(IF(FIND(R17,$P$1,1),\"(  x  ) Outros\"),\"(     ) Outros\")&\": \"&#REF!","v":{"$error":"#REF!"}},null,"13","Outros"]
["Profundidade (m)",null,"Nº de indivíduos",null,null,"(     ) Exocoetus volitans                 Peixe-voador",null,null,"(     ) Larus dominicanus     Gaivotão"]
[null,null,"Nº de Adultos: ",{"$nulls":8},"Distância da Unidade / Embarcação"]
["Estado do Mar1",null,"Nº Filhotes:   ",null,null,"(     ) Mola mola                              Peixe-lua",null,null,"(     ) Sterna sp.                     Trinta-réis"]
["(     ) Calmo (0-1)",null,"Interação com Pesca",{"$nulls":8},"Observações"]
["(     ) Crespo (2-3)",null,"(     ) Sim    (    ) Não",null,null,"(     ) Sardinella brasiliensis         Sardinha",null,null,"(     ) Puffinus puffinus            Bobo-pequeno"]
["(     ) Agitado (4)"]
["(     ) Forte (5+)",{"$nulls":4},"(     ) Katsuwonus pelamis              Bonito-gaiado",null,null,"(     ) Puffinus gravis                Bobo-grande"]
["Visibilidade",null,"Alguma alteração na fauna?"]
["(     ) Boa (>5km)",null,"(     ) Sim    (     ) Não",null,null,"(     ) Outros²: ",null,null,"(     ) Outros²: "]
["(     ) Moderada (entre 2 e 5km)"]
["(     ) Fraca (<1km)",null,"Ondulação (Swell)",null,null,"Confiança na identificação",null,null,"Fotos"]
["Vento",null,"(    ) Baixa (<2m)",null,null,"(   ) Certeza (   ) Provável (   ) Incerta           (   ) Desconhecida",null,null,"Foto:(     ) Sim   (     ) Não"]
["Direção: ",null,"(    ) Média (2-4m)",{"$nulls":8},"Assinatura do observador:"]
["Velocidade(km/h): ",null,"(    ) Forte (>4m)"]
["1 Entre parênteses, o equivalente na escala Beaufort.  2Identificação ao nível taxonômico mais específico possível. "]
[" 3  Pode ser indicado mais de um comportamento.  Utilize o verso da planilha para realizar uma descrição mais detalhada da avistagem."]
[null,null,"Projeto de Monitoramento Ambiental",{"$nulls":8},"N° do Registro"]
[null,null,"Registro de Avistagem de Fauna Marinha",{"$nulls":8},"Data"]

{"sheet":"Mamifero Marinho","index":1,"n_rows":42,"n_cols":48,"rows_kept":42,"merged":[[0,0,2,0],[0,2,2,10],[0,11,0,12],[1,11,1,12],[2,11,2,12],[3,2,3,4],[3,5,3,7],[4,0,5,0],[4,2,5,4],[4,5,4,7],[5,5,5,7],[6,2,7,4],[6,5,6,7],[7,5,7,7],[8,2,9,4],[8,5,8,7],[9,0,10,0],[9,5,9,7],[10,2,11,4],[10,5,10,7],[11,5,11,7],[12,2,13,4],[12,5,12,7],[13,5,13,7],[14,2,15,4],[14,5,14,7],[15,5,15,7],[16,2,17,4],[16,5,16,7],[17,5,17,7],[18,2,19,4],[18,5,18,7],[19,5,19,7],[20,2,21,4],[20,5,20,7],[21,5,21,7],[22,2,23,4],[22,5,22,7],[23,5,23,7],[24,5,24,7],[24,8,24,13],[25,5,25,7],[25,8,25,13],[26,5,26,7],[26,8,26,13],[27,2,27,4],[27,5,27,7],[27,8,27,11],[27,12,27,13],[28,2,28,4],[28,5,30,7],[29,2,29,4],[29,8,29,11],[29,12,29,13],[30,2,30,4],[30,8,30,11],[30,12,32,13],[31,0,31,11],[32,0,32,11],[33,0,34,1],[33,2,33,10],[33,11,33,12],[34,2,34,10],[34,11,34,12],[35,0,35,13],[36,0,36,13],[37,0,40,13],[41,0,41,13]]}
["                        ",null," Projeto de Monitoramento Ambiental\nRegistro de Avistagem de Mamífero Marinho    ",{"$nulls":8},"N° do Registro",{"$nulls":4},{"$f":"#REF!","v":{"$error":"#REF!"}},{"$nulls":26},{"$f":"AM5","v":0},null,null,{"$f":"AR9","v":0},{"$f":"AQ9","v":0}]
[{"$nulls":11},"Data"]
[{"$nulls":11},"Hora"]
["Observador",null,"Animal avistado",null,null,"Comportamento3",{"$nulls":10},{"$f":"#REF!","v":{"$error":"#REF!"}}]
[null,null,"(     ) Steno bredanensis\nGolfinho-de-dentes-rugosos",null,null,{"$f":"P5","v":"(   ) Deslocamento Lento"},{"$nulls":9},{"$f":"IFERROR(IF(FIND(R5,$Q$1,1),\"( x ) Deslocamento Lento\"),\"(   ) Deslocamento Lento\")","v":"(   ) Deslocamento Lento"},null,"01","lento",null,{"$f":"A5","v":0},null,"Claudia Petta",1,null,{"$f":"\"plan2!$A$\"&VLOOKUP($U$5,$W$5:$X$9,2,FALSE)","v":{"$error":"#N/A"}}]
[{"$nulls":5},{"$f":"P6","v":"(   ) Deslocamento Médio"},{"$nulls":9},{"$f":"IFERROR(IF(FIND(R6,$Q$1,1),\"( x ) Deslocamento Médio\"),\"(   ) Deslocamento Médio\")","v":"(   ) Deslocamento Médio"},null,"02","médio",{"$nulls":3},"Leonardo Vidal",2]
["Unidade / Embarcação",null,"(     ) Tursiops truncatus        Golfinho-Nariz-de-Garrafa ",null,null,"(   ) Deslocamento Rápido",{"$nulls":9},{"$f":"IFERROR(IF(FIND(R7,$Q$1,1),\"( x ) Deslocamento Rápido\"),\"(   ) Deslocamento Rápido\")","v":"(   ) Deslocamento Rápido"},null,"03","rápido",{"$nulls":3},"Zeldon Ribeiro",3]
[{"$nulls":5},"(   ) Porpoising",{"$nulls":9},{"$f":"IFERROR(IF(FIND(R8,$Q$1,1),\"( x ) Porpoising\"),\"(   ) Porpoising\")","v":"(   ) Porpoising"},null,"04","Porpoising",{"$nulls":3},"Luciano Cruz",4]
["Poço / Bloco",null,"(     ) Stenella frontalis  \nGolfinho-pintado-do-Atlântico",null,null,"(   ) Chorus line",{"$nulls":9},{"$f":"IFERROR(IF(FIND(R9,$Q$1,1),\"( x ) Chorus line\"),\"(   ) Chorus line\")","v":"(   ) Chorus line"},null,"05","Chorus",{"$nulls":3},"Bruno Ança",5]
[{"$nulls":5},{"$f":"P10","v":"(   ) Borrifo"},{"$nulls":9},{"$f":"IFERROR(IF(FIND(R10,$Q$1,1),\"( x ) Borrifo\"),\"(   ) Borrifo\")","v":"(   ) Borrifo"},null,"06","Borrifo"]
[null,null,"(     ) Stenella atenuata    \nGolfinho-Pintado-Pantropical",null,null,"(   ) Exposição da peitoral",{"$nulls":9},{"$f":"IFERROR(IF(FIND(R11,$Q$1,1),\"( x ) Exposição da peitoral\"),\"(   ) Exposição da peitoral\")","v":"(   ) Exposição da peitoral"},null,"07","peitoral"]
["Latitude ",{"$nulls":4},"(   ) Exposição da caudal",{"$nulls":9},{"$f":"IFERROR(IF(FIND(R12,$Q$1,1),\"( x ) Exposição da caudal\"),\"(   ) Exposição da caudal\")","v":"(   ) Exposição da caudal"},null,"08","caudal"]
[null,null,"(     ) Stenella longirotris      Golfinho-Rotador",null,null,"(   ) Golpe nadadeira na superfície",{"$nulls":9},{"$f":"IFERROR(IF(FIND(R13,$Q$1,1),\"( x ) Golpe nadadeira na superfície\"),\"(   ) Golpe nadadeira na superfície\")","v":"(   ) Golpe nadadeira na superfície"},null,"09","nadadeira"]
["Longitude",{"$nulls":4},"(   ) Golpe cabeça na superfície",{"$nulls":9},{"$f":"IFERROR(IF(FIND(R14,$Q$1,1),\"( x ) Golpe cabeça na superfície\"),\"(   ) Golpe cabeça na superfície\")","v":"(   ) Golpe cabeça na superfície"},null,"10","cabeça"]
[null,null,"(     ) Stenella clymene\nGolfinho-de-clymene",null,null,"(   ) Salto parcial",{"$nulls":9},{"$f":"IFERROR(IF(FIND(R15,$Q$1,1),\"( x ) Salto parcial\"),\"(   ) Salto parcial\")","v":"(   ) Salto parcial"},null,"11","parcial"]
["Datum",{"$nulls":4},"(   ) Salto total",{"$nulls":9},{"$f":"IFERROR(IF(FIND(R16,$Q$1,1),\"( x ) Salto total\"),\"(   ) Salto total\")","v":"(   ) Salto total"},null,"12","total"]
[null,null,"(     ) Peponocephala electra          Golfinho-cabeça-de-melão",null,null,"(   ) Repouso",{"$nulls":9},{"$f":"IFERROR(IF(FIND(R17,$Q$1,1),\"( x ) Repouso\"),\"(   ) Repouso\")","v":"(   ) Repouso"},null,"13","Repouso"]
["Profundidade",{"$nulls":4},"(   ) Indiferença",{"$nulls":9},{"$f":"IFERROR(IF(FIND(R18,$Q$1,1),\"( x ) Indiferença\"),\"(   ) Indiferença\")","v":"(   ) Indiferença"},null,"14","Indiferença"]
[null,null,"(     ) Pseudorca crassidens     Golfinho-Nariz-de-GarrafaFalsa orca",null,null,"(   ) Fuga/evitação",{"$nulls":9},{"$f":"IFERROR(IF(FIND(R19,$Q$1,1),\"( x ) Fuga/evitação\"),\"(   ) Fuga/evitação\")","v":"(   ) Fuga/evitação"},null,"15","Fuga"]
["Estado do Mar1",{"$nulls":4},"(   ) Diminuição comportamento aéreo",{"$nulls":9},{"$f":"IFERROR(IF(FIND(R20,$Q$1,1),\"( x ) Diminuição comportamento aéreo\"),\"(   ) Diminuição comportamento aéreo\")","v":"(   ) Diminuição comportamento aéreo"},null,"16","Diminuição "]
["(     ) Calmo (0-1)",null,"(     ) Globicephala macrorhynchus   \nBaleia-piloto-de-peitorais-curtas",null,null,"(   ) Aumento comportamento aéreo",{"$nulls":9},{"$f":"IFERROR(IF(FIND(R21,$Q$1,1),\"( x ) Aumento comportamento aéreo\"),\"(   ) Aumento comportamento aéreo\")","v":"(   ) Aumento comportamento aéreo"},null,"17","Aumento "]
["(     ) Crespo (2-3)",{"$nulls":4},"(   ) Diminuição tempo de inalação",{"$nulls":9},{"$f":"IFERROR(IF(FIND(R22,$Q$1,1),\"( x ) Diminuição tempo de inalação\"),\"(   ) Diminuição tempo de inalação\")","v":"(   ) Diminuição tempo de inalação"},null,"18","Redução"]
["(     ) Agitado (4)",null,"(     ) Physeter macrocephalus     Cachalote",null,null,"(   ) Aumento tempo de inalação",{"$nulls":9},{"$f":"IFERROR(IF(FIND(R23,$Q$1,1),\"( x ) Aumento tempo de inalação\"),\"(   ) Aumento tempo de inalação\")","v":"(   ) Aumento tempo de inalação"},null,"19","Acréscimo"]
["(     ) Forte (5+)",{"$nulls":4},"(   ) Diminuição tempo de mergulho",{"$nulls":9},{"$f":"IFERROR(IF(FIND(R24,$Q$1,1),\"( x ) Diminuição tempo de mergulho\"),\"(   ) Diminuição tempo de mergulho\")","v":"(   ) Diminuição tempo de mergulho"},null,"20","Retração"]
["Visibilidade",null,"(     )Outros: ",null,null,"(   ) Aumento tempo de mergulho",null,null,"Indicar posição do animal ou grupo e os deslocamentos observados",{"$nulls":6},{"$f":"IFERROR(IF(FIND(R25,$Q$1,1),\"( x ) Aumento tempo de mergulho\"),\"(   ) Aumento tempo de mergulho\")","v":"(   ) Aumento tempo de mergulho"},null,"21","Extensão"]
["(     ) Boa(>5km)",{"$nulls":4},"(   ) Cuidado parental",null,null,"tendo como referência central a unidade de perfuração. ",{"$nulls":6},{"$f":"IFERROR(IF(FIND(R26,$Q$1,1),\"( x ) Cuidado parental\"),\"(   ) Cuidado parental\")","v":"(   ) Cuidado parental"},null,"22","parental"]
["(     ) Moderada (entre 2 e 5km)",{"$nulls":4},"(   ) Outros:",{"$nulls":9},{"$f":"IFERROR(IF(FIND(R27,$Q$1,1),\"( x ) Outros\"),\"(   ) Outros\")&\": \"&#REF!","v":{"$error":"#REF!"}},null,23,"Outros"]
["(     ) Fraca(<1km)",null,"Ondulação (Swell)",null,null,"Confiança na identificação",null,null,"Nº de indivíduos",{"$nulls":3},"Distância da Unidade / Embarcação"]
["Vento",null,"(     ) Baixa (<2m)",null,null,"(   ) Certeza (   ) Provável (   ) Incerta           (   ) Desconhecida",null,null,"Nº de Adultos:      -    Nº Filhotes:   "]
["Direção: ","O: 270","(     ) Média (2-4m)",{"$nulls":5},"Alguma alteração na fauna?"]
["Velocidade(km/h):",4,"(     ) Forte (>4m)",{"$nulls":5},"(     )Sim    (     )Não"]
["1 Entre parênteses, o equivalente na escala Beaufort.  2Identificação ao nível taxonômico mais específico possível. "]
[" 3  Pode ser indicado mais de um comportamento.  Utilize o verso da planilha para realizar uma descrição mais detalhada da avistagem. "]
[null,null,"Projeto de Monitoramento Ambiental",{"$nulls":8},"N° do Registro"]
[null,null,"Registro de Avistagem de Mamífero Marinho",{"$nulls":8},"Data"]
[]
["Observações"]
[]
[]
[]
[]
["Foto:(     ) Sim   (     ) Não"]